[Event "*** Titled Tuesday Blitz"]
[Site "Chess.com"]
[Date "2020.05.12"]
[Round "2"]
[White "chessuriel"]
[Black "Haykoooo0o"]
[Result "1-0"]
[WhiteElo "2170"]
[BlackElo "2477"]
[TimeControl "180+1"]
[EndTime "10:14:26 PDT"]
[Termination "chessuriel won by resignation"]

1. e4 {[%clk 0:03:00.9]} 1... e5 {[%clk 0:02:55.4]} 2. Nf3 {[%clk 0:02:59.6]}
2... Nc6 {[%clk 0:02:55.8]} 3. Bc4 {[%clk 0:02:58.7]} 3... Bc5 {[%clk
0:02:55.5]} 4. d3 {[%clk 0:02:58.6]} 4... Nf6 {[%clk 0:02:52.5]} 5. c3 {[%clk
0:02:58.8]} 5... d6 {[%clk 0:02:52.2]} 6. O-O {[%clk 0:02:56.7]} 6... a6 {[%clk
0:02:52.7]} 7. Bb3 {[%clk 0:02:55]} 7... Ba7 {[%clk 0:02:53.2]} 8. Nbd2 {[%clk
0:02:53.8]} 8... h6 {[%clk 0:02:53.7]} 9. a4 {[%clk 0:02:53.2]} 9... g5 {[%clk
0:02:54.2]} 10. Nc4 {[%clk 0:02:42.3]} 10... g4 {[%clk 0:02:53.5]} 11. Nh4
{[%clk 0:02:41.2]} 11... Nxe4 {[%clk 0:02:53.3]} 12. dxe4 {[%clk 0:02:40.4]}
12... Qxh4 {[%clk 0:02:52.9]} 13. Ne3 {[%clk 0:02:37]} 13... h5 {[%clk
0:02:47.7]} 14. Nd5 {[%clk 0:02:19.5]} 14... Qd8 {[%clk 0:02:45.9]} 15. Kh1
{[%clk 0:02:09.8]} 15... Be6 {[%clk 0:02:42.8]} 16. f4 {[%clk 0:02:09.4]} 16...
h4 {[%clk 0:02:36.5]} 17. fxe5 {[%clk 0:02:06.9]} 17... Nxe5 {[%clk 0:02:35.9]}
18. Nf6+ {[%clk 0:02:05.4]} 18... Kf8 {[%clk 0:02:30.4]} 19. Bxe6 {[%clk
0:02:04.1]} 19... fxe6 {[%clk 0:02:28.2]} 20. Nxg4+ {[%clk 0:01:57.2]} 20... Ke8
{[%clk 0:02:28.5]} 21. Nf6+ {[%clk 0:01:46.6]} 21... Ke7 {[%clk 0:02:25.1]} 22.
Bg5 {[%clk 0:01:46]} 22... Qc8 {[%clk 0:02:24.2]} 23. Ng4+ {[%clk 0:01:39.8]}
23... Ke8 {[%clk 0:02:23]} 24. Nxe5 {[%clk 0:01:31.8]} 24... dxe5 {[%clk
0:02:23.9]} 25. Qf3 {[%clk 0:01:31.4]} 25... Qd7 {[%clk 0:02:21.2]} 26. Rad1
{[%clk 0:01:30.2]} 26... Qh7 {[%clk 0:02:20.5]} 27. Qf6 {[%clk 0:01:27]} 1-0

[Event "*** Titled Tuesday Blitz"]
[Site "Chess.com"]
[Date "2020.05.12"]
[Round "2"]
[White "OhanyanEminChess"]
[Black "Gabrielian_Artur"]
[Result "0-1"]
[WhiteElo "2476"]
[BlackElo "2711"]
[TimeControl "180+1"]
[EndTime "10:14:32 PDT"]
[Termination "Gabrielian_Artur won by resignation"]

1. e4 {[%clk 0:03:00.9]} 1... c5 {[%clk 0:02:59.6]} 2. Nf3 {[%clk 0:02:59.8]}
2... d6 {[%clk 0:02:59.6]} 3. d4 {[%clk 0:02:58.3]} 3... cxd4 {[%clk 0:02:59.8]}
4. Nxd4 {[%clk 0:02:58.3]} 4... Nf6 {[%clk 0:03:00.3]} 5. Nc3 {[%clk 0:02:57.8]}
5... Nc6 {[%clk 0:03:00.6]} 6. Bc4 {[%clk 0:02:56]} 6... Qb6 {[%clk 0:02:59.9]}
7. Nxc6 {[%clk 0:02:54.1]} 7... bxc6 {[%clk 0:02:59.5]} 8. O-O {[%clk
0:02:54.1]} 8... g6 {[%clk 0:02:59.6]} 9. Qe2 {[%clk 0:02:37.4]} 9... Bg7 {[%clk
0:02:51.6]} 10. e5 {[%clk 0:02:37.1]} 10... dxe5 {[%clk 0:02:48.3]} 11. Qxe5
{[%clk 0:02:37.4]} 11... Qb4 {[%clk 0:02:28.2]} 12. Re1 {[%clk 0:01:56.6]} 12...
O-O {[%clk 0:02:23.8]} 13. Bb3 {[%clk 0:01:48.3]} 13... Bf5 {[%clk 0:02:23.2]}
14. Qxe7 {[%clk 0:01:42.4]} 14... Rae8 {[%clk 0:02:07.9]} 15. Bxf7+ {[%clk
0:01:16]} 15... Rxf7 {[%clk 0:02:05.4]} 16. Qxe8+ {[%clk 0:01:14.4]} 16... Nxe8
{[%clk 0:02:04.8]} 17. Rxe8+ {[%clk 0:01:15.3]} 17... Rf8 {[%clk 0:02:04]} 18.
Rxf8+ {[%clk 0:01:14.8]} 18... Kxf8 {[%clk 0:02:02.4]} 0-1

[Event "*** Titled Tuesday Blitz"]
[Site "Chess.com"]
[Date "2020.05.12"]
[Round "2"]
[White "the_drake"]
[Black "ClassyEl"]
[Result "0-1"]
[WhiteElo "2208"]
[BlackElo "2529"]
[TimeControl "180+1"]
[EndTime "10:14:37 PDT"]
[Termination "ClassyEl won by resignation"]

1. e4 {[%clk 0:03:00.9]} 1... d6 {[%clk 0:02:59.7]} 2. d4 {[%clk 0:03:01]} 2...
Nf6 {[%clk 0:02:59.9]} 3. Nc3 {[%clk 0:03:01]} 3... c6 {[%clk 0:03:00.4]} 4. Be3
{[%clk 0:03:00.2]} 4... Nbd7 {[%clk 0:02:59.7]} 5. f3 {[%clk 0:03:00.6]} 5... b5
{[%clk 0:02:59.9]} 6. Qd2 {[%clk 0:03:00.5]} 6... Nb6 {[%clk 0:03:00.1]} 7. Bd3
{[%clk 0:03:00.6]} 7... g6 {[%clk 0:02:54.6]} 8. Nce2 {[%clk 0:03:00]} 8... Qc7
{[%clk 0:02:53.7]} 9. c3 {[%clk 0:02:54.4]} 9... a6 {[%clk 0:02:53.5]} 10. h4
{[%clk 0:02:52]} 10... h5 {[%clk 0:02:53.2]} 11. Nh3 {[%clk 0:02:50.5]} 11...
Bxh3 {[%clk 0:02:52.7]} 12. Rxh3 {[%clk 0:02:43.7]} 12... Bg7 {[%clk 0:02:52.2]}
13. Kf2 {[%clk 0:02:32.5]} 13... e6 {[%clk 0:02:50.8]} 14. Rg1 {[%clk
0:02:30.9]} 14... c5 {[%clk 0:02:50.5]} 15. g4 {[%clk 0:02:28.3]} 15... hxg4
{[%clk 0:02:50.8]} 16. fxg4 {[%clk 0:02:28.1]} 16... Qc6 {[%clk 0:02:42.6]} 17.
dxc5 {[%clk 0:02:14.2]} 17... dxc5 {[%clk 0:02:42.7]} 18. e5 {[%clk 0:02:13.5]}
18... Nfd7 {[%clk 0:02:31.1]} 19. Qc2 {[%clk 0:02:03.5]} 19... O-O-O {[%clk
0:02:18.5]} 20. Be4 {[%clk 0:02:02.4]} 20... Qc7 {[%clk 0:02:17.5]} 21. Bf4
{[%clk 0:01:54]} 21... Bxe5 {[%clk 0:02:16.7]} 22. Bxe5 {[%clk 0:01:51.4]} 22...
Nxe5 {[%clk 0:02:15.6]} 23. g5 {[%clk 0:01:48.8]} 23... Nbc4 {[%clk 0:02:11.1]}
24. b3 {[%clk 0:01:40.8]} 24... Rd2 {[%clk 0:02:04.4]} 25. Qc1 {[%clk 0:01:35]}
25... Nd6 {[%clk 0:02:04.6]} 26. Re3 {[%clk 0:01:32.1]} 26... Nxe4+ {[%clk
0:02:03.5]} 27. Rxe4 {[%clk 0:01:33]} 27... Nd3+ {[%clk 0:02:03.5]} 0-1

[Event "*** Titled Tuesday Blitz"]
[Site "Chess.com"]
[Date "2020.05.12"]
[Round "2"]
[White "Playgood28"]
[Black "Keithonsky"]
[Result "1-0"]
[WhiteElo "2239"]
[BlackElo "2437"]
[TimeControl "180+1"]
[EndTime "10:14:45 PDT"]
[Termination "Playgood28 won by resignation"]

1. d4 {[%clk 0:03:00.9]} 1... Nf6 {[%clk 0:03:00]} 2. c4 {[%clk 0:03:00]} 2...
e6 {[%clk 0:02:59.5]} 3. Nc3 {[%clk 0:02:59.5]} 3... Bb4 {[%clk 0:02:58.9]} 4.
Qc2 {[%clk 0:02:59.4]} 4... O-O {[%clk 0:02:56.8]} 5. a3 {[%clk 0:02:59.3]} 5...
Bxc3+ {[%clk 0:02:55.8]} 6. Qxc3 {[%clk 0:02:59.3]} 6... d5 {[%clk 0:02:54.6]}
7. e3 {[%clk 0:02:59.2]} 7... b6 {[%clk 0:02:50.6]} 8. Nf3 {[%clk 0:02:58.8]}
8... Bb7 {[%clk 0:02:50.5]} 9. b4 {[%clk 0:02:57.1]} 9... dxc4 {[%clk
0:02:49.7]} 10. Bxc4 {[%clk 0:02:55.7]} 10... Nbd7 {[%clk 0:02:50.2]} 11. Bb2
{[%clk 0:02:54.7]} 11... Rc8 {[%clk 0:02:49.4]} 12. O-O {[%clk 0:02:53.3]} 12...
c5 {[%clk 0:02:49.9]} 13. dxc5 {[%clk 0:02:52.2]} 13... bxc5 {[%clk 0:02:50.8]}
14. b5 {[%clk 0:02:52.1]} 14... Nb6 {[%clk 0:02:48.2]} 15. a4 {[%clk 0:02:39.4]}
15... Bxf3 {[%clk 0:02:35.1]} 16. gxf3 {[%clk 0:02:37.9]} 16... Nh5 {[%clk
0:02:35.2]} 17. Kh1 {[%clk 0:02:29.6]} 17... Qh4 {[%clk 0:02:34.7]} 18. Rg1
{[%clk 0:02:24.6]} 18... Nf6 {[%clk 0:01:45.8]} 19. Qxf6 {[%clk 0:01:48.7]}
19... Qxf6 {[%clk 0:01:44.8]} 20. Bxf6 {[%clk 0:01:48.2]} 20... g6 {[%clk
0:01:45.2]} 21. Rgc1 {[%clk 0:01:44.9]} 21... Nd5 {[%clk 0:01:39.9]} 22. Bxd5
{[%clk 0:01:42.4]} 22... exd5 {[%clk 0:01:40.8]} 23. Be7 {[%clk 0:01:41.7]}
23... Rfe8 {[%clk 0:01:40.7]} 24. Bxc5 {[%clk 0:01:41.9]} 1-0

[Event "*** Titled Tuesday Blitz"]
[Site "Chess.com"]
[Date "2020.05.12"]
[Round "2"]
[White "Micki-taryan"]
[Black "Klaus1995"]
[Result "1-0"]
[WhiteElo "3059"]
[BlackElo "1780"]
[TimeControl "180+1"]
[EndTime "10:14:47 PDT"]
[Termination "Micki-taryan won by resignation"]

1. d4 {[%clk 0:03:00.9]} 1... Nf6 {[%clk 0:02:59.2]} 2. Nf3 {[%clk 0:03:01.2]}
2... e6 {[%clk 0:02:59.8]} 3. c4 {[%clk 0:03:01.4]} 3... d5 {[%clk 0:03:00.4]}
4. Nc3 {[%clk 0:03:01.6]} 4... a6 {[%clk 0:02:58.3]} 5. c5 {[%clk 0:03:01.4]}
5... b6 {[%clk 0:02:57.8]} 6. cxb6 {[%clk 0:03:02.3]} 6... cxb6 {[%clk
0:02:57.6]} 7. Bf4 {[%clk 0:03:02.7]} 7... Bd6 {[%clk 0:02:57.2]} 8. e3 {[%clk
0:03:03]} 8... O-O {[%clk 0:02:55.3]} 9. Bd3 {[%clk 0:03:03.4]} 9... h6 {[%clk
0:02:54.2]} 10. O-O {[%clk 0:03:02.8]} 10... Nc6 {[%clk 0:02:50.3]} 11. Rc1
{[%clk 0:03:02.2]} 11... Bb7 {[%clk 0:02:50.2]} 12. Bb1 {[%clk 0:03:02.1]} 12...
Rc8 {[%clk 0:02:49.9]} 13. Ne5 {[%clk 0:03:00.4]} 13... Qc7 {[%clk 0:02:37.7]}
14. Na4 {[%clk 0:02:46.7]} 14... b5 {[%clk 0:02:24.2]} 15. Nc5 {[%clk
0:02:25.3]} 15... Bxc5 {[%clk 0:02:22.8]} 16. Rxc5 {[%clk 0:02:18.9]} 16... Qb6
{[%clk 0:02:22.3]} 17. Qd3 {[%clk 0:02:11]} 17... Nb4 {[%clk 0:01:45.9]} 18. Qc3
{[%clk 0:02:04.9]} 18... a5 {[%clk 0:01:30.3]} 19. Rc1 {[%clk 0:02:02.2]} 19...
Rxc5 {[%clk 0:01:28.9]} 20. dxc5 {[%clk 0:02:03.1]} 20... Qa6 {[%clk 0:01:20.5]}
21. c6 {[%clk 0:02:03.1]} 21... Rc8 {[%clk 0:01:19.6]} 22. cxb7 {[%clk
0:02:01.1]} 22... Rxc3 {[%clk 0:01:17.2]} 23. b8=Q+ {[%clk 0:02:01.1]} 1-0

[Event "*** Titled Tuesday Blitz"]
[Site "Chess.com"]
[Date "2020.05.12"]
[Round "2"]
[White "NefeLV"]
[Black "Ceejay271"]
[Result "0-1"]
[WhiteElo "1795"]
[BlackElo "2354"]
[TimeControl "180+1"]
[EndTime "10:14:48 PDT"]
[Termination "Ceejay271 won by resignation"]

1. e4 {[%clk 0:03:00.9]} 1... c5 {[%clk 0:02:58.4]} 2. f4 {[%clk 0:02:59.6]}
2... d5 {[%clk 0:02:57.6]} 3. e5 {[%clk 0:02:57.9]} 3... Nc6 {[%clk 0:02:56.5]}
4. Nf3 {[%clk 0:02:57.2]} 4... h5 {[%clk 0:02:54.4]} 5. c3 {[%clk 0:02:54.2]}
5... d4 {[%clk 0:02:50.1]} 6. Bd3 {[%clk 0:02:50.4]} 6... Nh6 {[%clk 0:02:47.4]}
7. Qc2 {[%clk 0:02:39.2]} 7... g6 {[%clk 0:02:43.7]} 8. Bxg6 {[%clk 0:02:28.2]}
8... Bg4 {[%clk 0:02:31.7]} 9. Be4 {[%clk 0:02:19.6]} 9... e6 {[%clk 0:02:27.9]}
10. g3 {[%clk 0:02:05.7]} 10... Nf5 {[%clk 0:02:14.9]} 11. Na3 {[%clk
0:01:58.7]} 11... h4 {[%clk 0:02:04.4]} 12. Bxf5 {[%clk 0:01:49.3]} 12... Bxf5
{[%clk 0:02:03.1]} 13. d3 {[%clk 0:01:43.9]} 13... hxg3 {[%clk 0:02:01.3]} 14.
cxd4 {[%clk 0:01:40.7]} 14... Nxd4 {[%clk 0:01:59]} 15. Nxd4 {[%clk 0:01:24.1]}
15... Qxd4 {[%clk 0:01:59.9]} 16. Nb5 {[%clk 0:01:20.3]} 16... Qb4+ {[%clk
0:01:58.5]} 17. Nc3 {[%clk 0:01:19.9]} 17... O-O-O {[%clk 0:01:57.6]} 0-1

[Event "*** Titled Tuesday Blitz"]
[Site "Chess.com"]
[Date "2020.05.12"]
[Round "2"]
[White "PlayChessSimple"]
[Black "Semen_Khanin"]
[Result "1-0"]
[WhiteElo "2492"]
[BlackElo "2694"]
[TimeControl "180+1"]
[EndTime "10:14:49 PDT"]
[Termination "PlayChessSimple won by resignation"]

1. e4 {[%clk 0:03:00.9]} 1... c5 {[%clk 0:02:59.4]} 2. Nf3 {[%clk 0:03:00.6]}
2... e6 {[%clk 0:02:59.8]} 3. c3 {[%clk 0:02:59.9]} 3... d5 {[%clk 0:02:55.4]}
4. e5 {[%clk 0:02:59.5]} 4... Nc6 {[%clk 0:02:49.2]} 5. d4 {[%clk 0:02:59.1]}
5... Bd7 {[%clk 0:02:50.1]} 6. Be2 {[%clk 0:02:58.6]} 6... f6 {[%clk 0:02:50.3]}
7. O-O {[%clk 0:02:56.9]} 7... fxe5 {[%clk 0:02:49.3]} 8. dxe5 {[%clk
0:02:55.3]} 8... Qc7 {[%clk 0:02:47.2]} 9. c4 {[%clk 0:02:51.5]} 9... Nge7
{[%clk 0:02:36.4]} 10. Nc3 {[%clk 0:02:42.5]} 10... d4 {[%clk 0:02:25.3]} 11.
Nb5 {[%clk 0:02:38.9]} 11... Qb6 {[%clk 0:02:20.2]} 12. Nd6+ {[%clk 0:02:38.9]}
12... Kd8 {[%clk 0:02:20.5]} 13. Nf7+ {[%clk 0:02:39.1]} 13... Kc7 {[%clk
0:02:20.6]} 14. Nxh8 {[%clk 0:02:39.2]} 14... Be8 {[%clk 0:02:20.9]} 15. Ng5
{[%clk 0:02:32.6]} 15... Nxe5 {[%clk 0:02:16.8]} 16. Bf4 {[%clk 0:02:31.6]}
16... Qd6 {[%clk 0:02:02.3]} 17. Nhf7 {[%clk 0:01:56.7]} 17... Bxf7 {[%clk
0:02:01.4]} 18. Nxf7 {[%clk 0:01:56.1]} 18... Nf3+ {[%clk 0:02:01.8]} 19. Bxf3
{[%clk 0:01:56.3]} 19... Qxf4 {[%clk 0:02:02]} 20. Qb3 {[%clk 0:01:47.7]} 20...
Nc6 {[%clk 0:01:57.4]} 21. Bxc6 {[%clk 0:01:41.5]} 21... bxc6 {[%clk 0:01:56.6]}
22. Qg3 {[%clk 0:01:31.7]} 22... Qxg3 {[%clk 0:01:47.8]} 23. fxg3 {[%clk
0:01:31.5]} 23... Be7 {[%clk 0:01:48.5]} 24. Rae1 {[%clk 0:01:28.1]} 1-0

[Event "*** Titled Tuesday Blitz"]
[Site "Chess.com"]
[Date "2020.05.12"]
[Round "2"]
[White "eightbyeightchess"]
[Black "NotFischer"]
[Result "1-0"]
[WhiteElo "2401"]
[BlackElo "2102"]
[TimeControl "180+1"]
[EndTime "10:14:53 PDT"]
[Termination "eightbyeightchess won by resignation"]

1. e4 {[%clk 0:03:00.9]} 1... c5 {[%clk 0:02:59.3]} 2. Nf3 {[%clk 0:02:58.1]}
2... e6 {[%clk 0:02:59.4]} 3. d4 {[%clk 0:02:58.3]} 3... cxd4 {[%clk 0:03:00.3]}
4. Nxd4 {[%clk 0:02:59.1]} 4... a6 {[%clk 0:03:00.6]} 5. Nc3 {[%clk 0:02:57.7]}
5... Nc6 {[%clk 0:03:00.7]} 6. Nxc6 {[%clk 0:02:56.7]} 6... bxc6 {[%clk
0:03:00.5]} 7. Bd3 {[%clk 0:02:57.2]} 7... e5 {[%clk 0:02:58.6]} 8. O-O {[%clk
0:02:56.7]} 8... Nf6 {[%clk 0:02:54.1]} 9. Kh1 {[%clk 0:02:44.9]} 9... Be7
{[%clk 0:02:51.6]} 10. f4 {[%clk 0:02:45]} 10... d6 {[%clk 0:02:51.5]} 11. Qe1
{[%clk 0:02:40.3]} 11... Qb6 {[%clk 0:02:36.3]} 12. fxe5 {[%clk 0:02:35.6]}
12... dxe5 {[%clk 0:02:36]} 13. Qg3 {[%clk 0:02:35.5]} 13... O-O {[%clk
0:02:21.4]} 14. Bh6 {[%clk 0:02:26]} 14... Nh5 {[%clk 0:02:13.1]} 15. Qxe5
{[%clk 0:02:24.6]} 15... gxh6 {[%clk 0:02:02.1]} 16. Qxe7 {[%clk 0:02:00.5]}
16... Qxb2 {[%clk 0:01:59.4]} 17. Bc4 {[%clk 0:01:45.7]} 17... Qxc3 {[%clk
0:01:26]} 18. Bxf7+ {[%clk 0:01:44.7]} 18... Kg7 {[%clk 0:01:21]} 19. Be8+
{[%clk 0:01:44.3]} 1-0

[Event "*** Titled Tuesday Blitz"]
[Site "Chess.com"]
[Date "2020.05.12"]
[Round "2"]
[White "halfnatty"]
[Black "binbin239"]
[Result "1-0"]
[WhiteElo "2746"]
[BlackElo "2498"]
[TimeControl "180+1"]
[EndTime "10:14:57 PDT"]
[Termination "halfnatty won by resignation"]

1. e4 {[%clk 0:03:00.9]} 1... c5 {[%clk 0:02:59.4]} 2. Nf3 {[%clk 0:03:01.1]}
2... Nc6 {[%clk 0:02:59.1]} 3. Bb5 {[%clk 0:03:00.8]} 3... g6 {[%clk 0:02:59.3]}
4. Bxc6 {[%clk 0:03:00.9]} 4... bxc6 {[%clk 0:02:59.9]} 5. O-O {[%clk
0:03:00.7]} 5... Bg7 {[%clk 0:03:00.1]} 6. Re1 {[%clk 0:03:01.4]} 6... Nf6
{[%clk 0:03:00.3]} 7. e5 {[%clk 0:03:01.7]} 7... Nd5 {[%clk 0:03:00.8]} 8. c4
{[%clk 0:03:02.4]} 8... Nb6 {[%clk 0:03:01.1]} 9. d4 {[%clk 0:03:03.1]} 9...
cxd4 {[%clk 0:03:01.2]} 10. Qxd4 {[%clk 0:03:03.8]} 10... O-O {[%clk 0:03:01.6]}
11. Qh4 {[%clk 0:03:01.3]} 11... d5 {[%clk 0:02:58.7]} 12. Bh6 {[%clk
0:02:49.6]} 12... f6 {[%clk 0:02:59]} 13. Bxg7 {[%clk 0:02:43.9]} 13... Kxg7
{[%clk 0:02:59]} 14. Nbd2 {[%clk 0:02:30.7]} 14... Bf5 {[%clk 0:02:46.9]} 15. c5
{[%clk 0:02:25.1]} 15... Nd7 {[%clk 0:02:43.2]} 16. b4 {[%clk 0:02:23.7]} 16...
g5 {[%clk 0:02:13.6]} 17. Qg3 {[%clk 0:02:16.2]} 17... h6 {[%clk 0:02:08.6]} 18.
e6 {[%clk 0:02:12.7]} 18... Nb8 {[%clk 0:01:58.7]} 19. Nd4 {[%clk 0:02:10.7]}
19... Bg6 {[%clk 0:01:55.9]} 20. f4 {[%clk 0:02:09.4]} 20... a5 {[%clk
0:01:48.6]} 21. h4 {[%clk 0:02:04.1]} 21... gxf4 {[%clk 0:01:43.6]} 22. Qxf4
{[%clk 0:02:02.2]} 22... axb4 {[%clk 0:01:43.5]} 23. Re3 {[%clk 0:02:01.7]}
23... Rg8 {[%clk 0:01:37.3]} 24. h5 {[%clk 0:01:55.6]} 24... Bxh5 {[%clk
0:01:25.7]} 25. Nf5+ {[%clk 0:01:55.1]} 25... Kf8 {[%clk 0:01:25.1]} 26. Qxh6+
{[%clk 0:01:54.9]} 26... Ke8 {[%clk 0:01:25.5]} 27. Qxh5+ {[%clk 0:01:55]} 1-0

[Event "*** Titled Tuesday Blitz"]
[Site "Chess.com"]
[Date "2020.05.12"]
[Round "2"]
[White "Twitch_ElhamBlitz05"]
[Black "EddieMarsalla"]
[Result "1-0"]
[WhiteElo "2806"]
[BlackElo "2524"]
[TimeControl "180+1"]
[EndTime "10:14:58 PDT"]
[Termination "Twitch_ElhamBlitz05 won by resignation"]

1. e4 {[%clk 0:03:00.9]} 1... c6 {[%clk 0:02:57.3]} 2. d4 {[%clk 0:02:58.6]}
2... d5 {[%clk 0:02:57.4]} 3. Nd2 {[%clk 0:02:58.8]} 3... dxe4 {[%clk
0:02:54.9]} 4. Nxe4 {[%clk 0:02:59.7]} 4... Nf6 {[%clk 0:02:55.2]} 5. Nxf6+
{[%clk 0:02:55.3]} 5... exf6 {[%clk 0:02:56.1]} 6. c3 {[%clk 0:02:55.7]} 6...
Bd6 {[%clk 0:02:56.2]} 7. Bd3 {[%clk 0:02:56]} 7... Qc7 {[%clk 0:02:56.5]} 8.
Qc2 {[%clk 0:02:54.7]} 8... Be6 {[%clk 0:02:56.4]} 9. Ne2 {[%clk 0:02:54.9]}
9... Nd7 {[%clk 0:02:55]} 10. Be3 {[%clk 0:02:53.6]} 10... g6 {[%clk 0:02:38.7]}
11. h3 {[%clk 0:02:50.5]} 11... f5 {[%clk 0:02:26.9]} 12. Bh6 {[%clk 0:02:37.1]}
12... O-O-O {[%clk 0:02:20.8]} 13. O-O-O {[%clk 0:02:34.3]} 13... Qa5 {[%clk
0:02:15.2]} 14. b3 {[%clk 0:02:31.2]} 14... Ba3+ {[%clk 0:02:12.9]} 15. Kb1
{[%clk 0:02:31.4]} 15... Nf6 {[%clk 0:01:52.8]} 16. b4 {[%clk 0:02:20.6]} 16...
Qb6 {[%clk 0:01:38.7]} 17. Qa4 {[%clk 0:02:03.6]} 17... Ne4 {[%clk 0:01:07.5]}
18. Bxe4 {[%clk 0:02:02.3]} 18... fxe4 {[%clk 0:01:08.4]} 19. Qxa3 {[%clk
0:02:03]} 19... Bc4 {[%clk 0:01:06.8]} 20. Nc1 {[%clk 0:01:58.5]} 20... f5
{[%clk 0:01:05.8]} 1-0

[Event "*** Titled Tuesday Blitz"]
[Site "Chess.com"]
[Date "2020.05.12"]
[Round "2"]
[White "Perecke"]
[Black "AnkitGajwa"]
[Result "0-1"]
[WhiteElo "2198"]
[BlackElo "2436"]
[TimeControl "180+1"]
[EndTime "10:15:05 PDT"]
[Termination "AnkitGajwa won by resignation"]

1. e4 {[%clk 0:03:00.9]} 1... d5 {[%clk 0:02:59.4]} 2. exd5 {[%clk 0:02:59]}
2... Nf6 {[%clk 0:02:58.9]} 3. d4 {[%clk 0:02:58.3]} 3... Nxd5 {[%clk
0:02:55.5]} 4. c4 {[%clk 0:02:54.6]} 4... Nb6 {[%clk 0:02:54.3]} 5. Nf3 {[%clk
0:02:49.5]} 5... g6 {[%clk 0:02:53.5]} 6. Be3 {[%clk 0:02:45.9]} 6... Bg7 {[%clk
0:02:53.3]} 7. h3 {[%clk 0:02:46.1]} 7... O-O {[%clk 0:02:52.9]} 8. Nc3 {[%clk
0:02:45.9]} 8... Nc6 {[%clk 0:02:51.1]} 9. Be2 {[%clk 0:02:41.1]} 9... e5 {[%clk
0:02:50.9]} 10. d5 {[%clk 0:02:32.3]} 10... Na5 {[%clk 0:02:50.6]} 11. Bxb6
{[%clk 0:02:27]} 11... axb6 {[%clk 0:02:45.6]} 12. b4 {[%clk 0:02:10]} 12... e4
{[%clk 0:02:43.4]} 13. Nxe4 {[%clk 0:02:04.5]} 13... Qe7 {[%clk 0:02:42.9]} 14.
Ng3 {[%clk 0:01:29.2]} 14... Qxb4+ {[%clk 0:02:38.3]} 15. Kf1 {[%clk 0:01:26.7]}
15... Bxa1 {[%clk 0:02:36.6]} 16. Qxa1 {[%clk 0:01:27.6]} 16... Nxc4 {[%clk
0:02:36.5]} 17. Ne4 {[%clk 0:01:11.5]} 17... Qb2 {[%clk 0:02:28.2]} 18. Qe1
{[%clk 0:00:51.5]} 18... Rxa2 {[%clk 0:02:22.2]} 19. Bxc4 {[%clk 0:00:42.9]}
19... Ra1 {[%clk 0:02:22.4]} 20. Nfd2 {[%clk 0:00:41.8]} 20... Rxe1+ {[%clk
0:02:20.1]} 21. Kxe1 {[%clk 0:00:42.7]} 21... Qc1+ {[%clk 0:02:20.1]} 22. Ke2
{[%clk 0:00:42.8]} 22... Qxh1 {[%clk 0:02:20.2]} 0-1

[Event "*** Titled Tuesday Blitz"]
[Site "Chess.com"]
[Date "2020.05.12"]
[Round "2"]
[White "MacDaddyMac"]
[Black "pedromartinez91"]
[Result "0-1"]
[WhiteElo "2278"]
[BlackElo "2507"]
[TimeControl "180+1"]
[EndTime "10:15:23 PDT"]
[Termination "pedromartinez91 won by checkmate"]

1. e4 {[%clk 0:03:00.9]} 1... e6 {[%clk 0:02:59.8]} 2. d4 {[%clk 0:03:00.9]}
2... d5 {[%clk 0:03:00.1]} 3. Nc3 {[%clk 0:03:00.2]} 3... Nf6 {[%clk 0:03:00.1]}
4. Bg5 {[%clk 0:02:59.4]} 4... h6 {[%clk 0:03:00]} 5. Bxf6 {[%clk 0:02:55.3]}
5... Qxf6 {[%clk 0:03:00.9]} 6. exd5 {[%clk 0:02:54]} 6... Bb4 {[%clk
0:03:00.1]} 7. dxe6 {[%clk 0:02:53.8]} 7... Bxe6 {[%clk 0:03:01]} 8. Nf3 {[%clk
0:02:53.9]} 8... O-O {[%clk 0:02:56.2]} 9. Be2 {[%clk 0:02:54.2]} 9... Rd8
{[%clk 0:02:54.4]} 10. O-O {[%clk 0:02:53.2]} 10... Bxc3 {[%clk 0:02:54.8]} 11.
bxc3 {[%clk 0:02:53.1]} 11... c5 {[%clk 0:02:55.5]} 12. Qb1 {[%clk 0:02:51.1]}
12... Nc6 {[%clk 0:02:53.8]} 13. Rd1 {[%clk 0:02:41.7]} 13... cxd4 {[%clk
0:02:45.1]} 14. cxd4 {[%clk 0:02:41.4]} 14... Nxd4 {[%clk 0:02:45.6]} 15. Nxd4
{[%clk 0:02:38]} 15... Rxd4 {[%clk 0:02:46]} 16. Qxb7 {[%clk 0:02:38]} 16... Bd5
{[%clk 0:02:30.5]} 17. Qd7 {[%clk 0:02:15]} 17... Rd8 {[%clk 0:02:23]} 18. Qxd8+
{[%clk 0:02:12.8]} 18... Qxd8 {[%clk 0:02:16.4]} 19. Rxd4 {[%clk 0:02:13.7]}
19... Qf6 {[%clk 0:02:14.9]} 20. Rad1 {[%clk 0:02:08.5]} 20... Bxa2 {[%clk
0:02:15]} 21. Rd8+ {[%clk 0:02:06.8]} 21... Kh7 {[%clk 0:02:15.3]} 22. h3 {[%clk
0:02:00.2]} 22... Be6 {[%clk 0:02:11.7]} 23. Ra8 {[%clk 0:01:53.7]} 23... Qe7
{[%clk 0:02:00.4]} 24. Rdd8 {[%clk 0:01:47]} 24... g6 {[%clk 0:02:00.3]} 25. Bd3
{[%clk 0:01:31.3]} 25... Kg7 {[%clk 0:01:57.3]} 26. Rd4 {[%clk 0:01:28.5]} 26...
h5 {[%clk 0:01:56.7]} 27. Ra4 {[%clk 0:01:28.4]} 27... Qg5 {[%clk 0:01:53.7]}
28. Kh2 {[%clk 0:01:23.7]} 28... Qe5+ {[%clk 0:01:50.5]} 29. g3 {[%clk 0:01:18]}
29... Bd5 {[%clk 0:01:41.5]} 30. R8xa7 {[%clk 0:01:13]} 30... Qe1 {[%clk
0:01:40.5]} 31. Rf4 {[%clk 0:01:09.6]} 31... Qh1# {[%clk 0:01:40.1]} 0-1